[Event "Titled Tuesday Blitz October 26 2021"]
[White "Fawzy, Adham"]
[Black "Sadhwani, Raunak"]
[WhiteFideId "10613129"]
[BlackFideId "35093487"]
[WhiteElo "2504"]
[BlackElo "2517"]
[Result "1/2-1/2"]
[Round "04"]
[TimeControl "180+1"]
[Date "2021.10.26"]
[WhiteClock "0:00:07"]
[BlackClock "0:00:03"]

1. e4 {[%clk 0:03:00]}  c6 {[%clk 0:02:56]} 2. d4 {[%clk 0:03:00]}  d5 {[%clk 0:02:56]} 3. exd5 {[%clk 0:03:01]}  cxd5 {[%clk 0:02:54]} 4. c4 {[%clk 0:03:01]}  Nf6 {[%clk 0:02:52]} 5. Nc3 {[%clk 0:03:01]}  Nc6 {[%clk 0:02:53]} 6. Bg5 {[%clk 0:03:00]}  Be6 {[%clk 0:02:49]} 7. a3 {[%clk 0:03:00]}  g6 {[%clk 0:02:40]} 8. Bxf6 {[%clk 0:03:00]}  exf6 {[%clk 0:02:40]} 9. cxd5 {[%clk 0:03:00]}  Bxd5 {[%clk 0:02:41]} 10. Qe2+ {[%clk 0:03:01]}  Be7 {[%clk 0:02:40]} 11. Qb5 {[%clk 0:03:01]}  Be6 {[%clk 0:02:05]} 12. d5 {[%clk 0:02:59]}  a6 {[%clk 0:02:04]} 13. Qe2 {[%clk 0:02:56]}  Nd4 {[%clk 0:01:24]} 14. Qe4 {[%clk 0:02:54]}  Qb6 {[%clk 0:01:23]} 15. Rd1 {[%clk 0:02:54]}  Bf5 {[%clk 0:00:59]} 16. Qxd4 {[%clk 0:02:47]}  Bc5 {[%clk 0:01:00]} 17. Qd2 {[%clk 0:02:21]}  O-O {[%clk 0:01:00]} 18. Bd3 {[%clk 0:02:10]}  Bxd3 {[%clk 0:00:59]} 19. Qxd3 {[%clk 0:02:10]}  Bxf2+ {[%clk 0:00:56]} 20. Kf1 {[%clk 0:02:10]}  Bxg1 {[%clk 0:00:54]} 21. Rxg1 {[%clk 0:02:07]}  Qxb2 {[%clk 0:00:54]} 22. Rd2 {[%clk 0:02:00]}  Qxa3 {[%clk 0:00:47]} 23. Kf2 {[%clk 0:02:00]}  Rfe8 {[%clk 0:00:41]} 24. Qd4 {[%clk 0:01:49]}  Qd6 {[%clk 0:00:34]} 25. g3 {[%clk 0:01:35]}  f5 {[%clk 0:00:32]} 26. Re2 {[%clk 0:01:15]}  Red8 {[%clk 0:00:27]} 27. Rd1 {[%clk 0:01:11]}  b5 {[%clk 0:00:27]} 28. h4 {[%clk 0:01:11]}  Rac8 {[%clk 0:00:25]} 29. Nb1 {[%clk 0:00:36]}  Rc4 {[%clk 0:00:23]} 30. Qe5 {[%clk 0:00:35]}  Qxe5 {[%clk 0:00:18]} 31. Rxe5 {[%clk 0:00:35]}  Kf8 {[%clk 0:00:19]} 32. d6 {[%clk 0:00:35]}  Rc6 {[%clk 0:00:19]} 33. Red5 {[%clk 0:00:34]}  b4 {[%clk 0:00:19]} 34. R1d4 {[%clk 0:00:33]}  Rb6 {[%clk 0:00:10]} 35. d7 {[%clk 0:00:32]}  Rb7 {[%clk 0:00:09]} 36. Ke3 {[%clk 0:00:26]}  Ke7 {[%clk 0:00:06]} 37. Ra5 {[%clk 0:00:26]}  Rbxd7 {[%clk 0:00:04]} 38. Rxd7+ {[%clk 0:00:25]}  Rxd7 {[%clk 0:00:05]} 39. Rxa6 {[%clk 0:00:25]}  Rd1 {[%clk 0:00:05]} 40. Nd2 {[%clk 0:00:25]}  Rg1 {[%clk 0:00:06]} 41. Kf2 {[%clk 0:00:22]}  Rd1 {[%clk 0:00:06]} 42. Nc4 {[%clk 0:00:20]}  Rd4 {[%clk 0:00:04]} 43. Ne5 {[%clk 0:00:20]}  Rd6 {[%clk 0:00:02]} 44. Ra7+ {[%clk 0:00:19]}  Ke6 {[%clk 0:00:03]} 45. Nc4 {[%clk 0:00:18]}  Rc6 {[%clk 0:00:03]} 46. Na5 {[%clk 0:00:17]}  Rb6 {[%clk 0:00:03]} 47. Nb3 {[%clk 0:00:16]}  Kd5 {[%clk 0:00:03]} 48. Rc7 {[%clk 0:00:17]}  Rc6 {[%clk 0:00:03]} 49. Rd7+ {[%clk 0:00:15]}  Rd6 {[%clk 0:00:04]} 50. Rxf7 {[%clk 0:00:15]}  Kc4 {[%clk 0:00:04]} 51. Na5+ {[%clk 0:00:14]}  Kb5 {[%clk 0:00:04]} 52. Nb3 {[%clk 0:00:14]}  Rd3 {[%clk 0:00:04]} 53. Nc1 {[%clk 0:00:13]}  Rc3 {[%clk 0:00:05]} 54. Ne2 {[%clk 0:00:14]}  Rc4 {[%clk 0:00:05]} 55. Ke3 {[%clk 0:00:14]}  b3 {[%clk 0:00:03]} 56. Rb7+ {[%clk 0:00:14]}  Ka4 {[%clk 0:00:03]} 57. Nd4 {[%clk 0:00:14]}  Rc3+ {[%clk 0:00:02]} 58. Kf4 {[%clk 0:00:11]}  Rd3 {[%clk 0:00:02]} 59. Ke5 {[%clk 0:00:10]}  Ka3 {[%clk 0:00:03]} 60. Rxh7 {[%clk 0:00:09]}  b2 {[%clk 0:00:03]} 61. Rb7 {[%clk 0:00:09]}  Rxg3 {[%clk 0:00:02]} 62. Ra7+ {[%clk 0:00:07]}  Kb4 {[%clk 0:00:02]} 63. Rb7+ {[%clk 0:00:08]}  Ka3 {[%clk 0:00:01]} 64. Ra7+ {[%clk 0:00:07]}  Kb4 {[%clk 0:00:02]} 65. Rb7+ {[%clk 0:00:07]}  Kc4 {[%clk 0:00:01]} 66. Rxb2 {[%clk 0:00:05]}  Re3+ {[%clk 0:00:02]} 67. Kf6 {[%clk 0:00:06]}  Kxd4 {[%clk 0:00:02]} 68. Kxg6 {[%clk 0:00:06]}  f4 {[%clk 0:00:03]} 69. h5 {[%clk 0:00:06]}  f3 {[%clk 0:00:03]} 70. h6 {[%clk 0:00:06]}  Re6+ {[%clk 0:00:02]} 71. Kg7 {[%clk 0:00:05]}  Rxh6 {[%clk 0:00:02]} 72. Kxh6 {[%clk 0:00:06]}  Ke3 {[%clk 0:00:03]} 73. Rb3+ {[%clk 0:00:07]}  Ke2 {[%clk 0:00:03]} 74. Rxf3 {[%clk 0:00:07]}  Kxf3 {[%clk 0:00:03]} 1/2-1/2


[Site "https://www.chess.com"]

[Event "Titled Tuesday Blitz October 26 2021"]
[White "Grischuk, Alexander"]
[Black "Bartel, Michal"]
[WhiteFideId "4126025"]
[BlackFideId "1119257"]
[WhiteElo "2757"]
[BlackElo "2211"]
[Result "1-0"]
[Round "04"]
[TimeControl "180+1"]
[Date "2021.10.26"]
[WhiteClock "0:01:00"]
[BlackClock "0:01:09"]

1. e4 {[%clk 0:03:00]}  e5 {[%clk 0:02:59]} 2. Nf3 {[%clk 0:03:01]}  Nc6 {[%clk 0:02:59]} 3. Bc4 {[%clk 0:03:00]}  Nf6 {[%clk 0:02:59]} 4. d3 {[%clk 0:03:01]}  h6 {[%clk 0:02:59]} 5. O-O {[%clk 0:02:59]}  d6 {[%clk 0:02:59]} 6. a4 {[%clk 0:02:58]}  g6 {[%clk 0:02:59]} 7. a5 {[%clk 0:02:58]}  a6 {[%clk 0:02:57]} 8. c3 {[%clk 0:02:54]}  Bg7 {[%clk 0:02:56]} 9. Re1 {[%clk 0:02:54]}  O-O {[%clk 0:02:55]} 10. Nbd2 {[%clk 0:02:53]}  d5 {[%clk 0:02:49]} 11. exd5 {[%clk 0:02:53]}  Nxd5 {[%clk 0:02:50]} 12. Ne4 {[%clk 0:02:53]}  Nde7 {[%clk 0:02:29]} 13. Be3 {[%clk 0:02:38]}  Kh7 {[%clk 0:02:26]} 14. Bc5 {[%clk 0:02:37]}  f6 {[%clk 0:01:58]} 15. d4 {[%clk 0:02:31]}  exd4 {[%clk 0:01:56]} 16. Nxd4 {[%clk 0:02:30]}  Ne5 {[%clk 0:01:44]} 17. f4 {[%clk 0:02:05]}  Nxc4 {[%clk 0:01:34]} 18. Bxe7 {[%clk 0:02:05]}  Qe8 {[%clk 0:01:28]} 19. Bxf8 {[%clk 0:01:52]}  Qxf8 {[%clk 0:01:28]} 20. Qb3 {[%clk 0:01:53]}  Nd6 {[%clk 0:01:21]} 21. Nxd6 {[%clk 0:01:52]}  Qxd6 {[%clk 0:01:21]} 22. Qf7 {[%clk 0:01:48]}  Bf5 {[%clk 0:01:09]} 23. Nxf5 {[%clk 0:01:39]}  gxf5 {[%clk 0:01:10]} 24. Re7 {[%clk 0:01:25]}  Rg8 {[%clk 0:01:11]} 25. Rf1 {[%clk 0:01:26]}  Qc5+ {[%clk 0:01:09]} 26. Kh1 {[%clk 0:01:26]}  Qxa5 {[%clk 0:01:10]} 27. h3 {[%clk 0:01:21]}  Qb5 {[%clk 0:01:10]} 28. Rf3 {[%clk 0:01:21]}  Qxb2 {[%clk 0:01:09]} 29. Rg3 {[%clk 0:00:59]}  Qc1+ {[%clk 0:01:09]} 30. Kh2 {[%clk 0:01:00]}  Qxf4 {[%clk 0:01:10]} 31. Qg6+ {[%clk 0:00:59]}  Kh8 {[%clk 0:01:09]} 32. Rxg7 {[%clk 0:01:00]}  Rxg7 {[%clk 0:01:09]} 33. Qxg7# {[%clk 0:01:00]} 1-0


[Site "https://www.chess.com"]

[Event "Titled Tuesday Blitz October 26 2021"]
[White "Lazavik, Denis"]
[Black "Budrewicz, Krzysztof"]
[WhiteFideId "13515110"]
[BlackFideId "1127950"]
[WhiteElo "2436"]
[BlackElo "2242"]
[Result "1-0"]
[Round "04"]
[TimeControl "180+1"]
[Date "2021.10.26"]
[WhiteClock "0:00:05"]
[BlackClock "0:00:04"]

1. d4 {[%clk 0:03:00]}  Nf6 {[%clk 0:02:59]} 2. c4 {[%clk 0:03:01]}  g6 {[%clk 0:02:59]} 3. g3 {[%clk 0:03:00]}  Bg7 {[%clk 0:03:00]} 4. Bg2 {[%clk 0:03:00]}  O-O {[%clk 0:03:00]} 5. Nc3 {[%clk 0:03:01]}  d6 {[%clk 0:03:00]} 6. Nf3 {[%clk 0:03:01]}  Nc6 {[%clk 0:03:01]} 7. O-O {[%clk 0:03:02]}  e5 {[%clk 0:03:01]} 8. dxe5 {[%clk 0:02:59]}  Nxe5 {[%clk 0:02:58]} 9. Nxe5 {[%clk 0:02:58]}  dxe5 {[%clk 0:02:59]} 10. Qxd8 {[%clk 0:02:54]}  Rxd8 {[%clk 0:02:59]} 11. Bg5 {[%clk 0:02:55]}  Rd6 {[%clk 0:02:55]} 12. Bxf6 {[%clk 0:02:33]}  Bxf6 {[%clk 0:02:38]} 13. Ne4 {[%clk 0:02:32]}  Ra6 {[%clk 0:02:32]} 14. Nxf6+ {[%clk 0:02:30]}  Rxf6 {[%clk 0:02:32]} 15. Rfd1 {[%clk 0:02:30]}  Bg4 {[%clk 0:02:09]} 16. Rd2 {[%clk 0:02:07]}  c6 {[%clk 0:02:02]} 17. b4 {[%clk 0:02:07]}  Kf8 {[%clk 0:01:54]} 18. b5 {[%clk 0:02:03]}  cxb5 {[%clk 0:01:41]} 19. cxb5 {[%clk 0:02:02]}  Rb6 {[%clk 0:01:42]} 20. a4 {[%clk 0:01:16]}  Be6 {[%clk 0:01:31]} 21. a5 {[%clk 0:00:55]}  Rxb5 {[%clk 0:01:18]} 22. a6 {[%clk 0:00:54]}  Rb8 {[%clk 0:00:42]} 23. axb7 {[%clk 0:00:53]}  Ke7 {[%clk 0:00:31]} 24. Rc1 {[%clk 0:00:44]}  a5 {[%clk 0:00:25]} 25. Rc7+ {[%clk 0:00:37]}  Kf6 {[%clk 0:00:24]} 26. Bc6 {[%clk 0:00:28]}  Rb1+ {[%clk 0:00:19]} 27. Kg2 {[%clk 0:00:28]}  a4 {[%clk 0:00:19]} 28. Rd6 {[%clk 0:00:07]}  a3 {[%clk 0:00:18]} 29. Bd5 {[%clk 0:00:05]}  Rb2 {[%clk 0:00:14]} 30. Bxe6 {[%clk 0:00:03]}  fxe6 {[%clk 0:00:15]} 31. Rdd7 {[%clk 0:00:03]}  a2 {[%clk 0:00:14]} 32. Rf7+ {[%clk 0:00:03]}  Kg5 {[%clk 0:00:07]} 33. h4+ {[%clk 0:00:04]}  Kh5 {[%clk 0:00:04]} 34. Rxh7+ {[%clk 0:00:04]}  Kg4 {[%clk 0:00:04]} 35. f3+ {[%clk 0:00:04]}  Kf5 {[%clk 0:00:04]} 36. Rcf7# {[%clk 0:00:05]} 1-0


[Site "https://www.chess.com"]

[Event "Titled Tuesday Blitz October 26 2021"]
[White "Madaminov, Mukhiddin"]
[Black "Gupta, Abhijeet"]
[WhiteFideId "14210703"]
[BlackFideId "5010608"]
[WhiteElo "1855"]
[BlackElo "2549"]
[Result "0-1"]
[Round "04"]
[TimeControl "180+1"]
[Date "2021.10.26"]
[WhiteClock "0:00:02"]
[BlackClock "0:00:22"]

1. e4 {[%clk 0:03:00]}  c5 {[%clk 0:02:59]} 2. Nf3 {[%clk 0:03:01]}  d6 {[%clk 0:03:00]} 3. Bb5+ {[%clk 0:03:01]}  Nd7 {[%clk 0:02:59]} 4. O-O {[%clk 0:03:02]}  a6 {[%clk 0:02:59]} 5. Bd3 {[%clk 0:03:02]}  Ngf6 {[%clk 0:02:52]} 6. Re1 {[%clk 0:03:03]}  Ne5 {[%clk 0:02:51]} 7. Be2 {[%clk 0:02:58]}  Nxf3+ {[%clk 0:02:29]} 8. Bxf3 {[%clk 0:02:59]}  e5 {[%clk 0:02:22]} 9. c3 {[%clk 0:02:59]}  Be7 {[%clk 0:02:22]} 10. d4 {[%clk 0:02:59]}  O-O {[%clk 0:02:22]} 11. Nd2 {[%clk 0:03:00]}  Re8 {[%clk 0:02:16]} 12. a4 {[%clk 0:02:59]}  Qc7 {[%clk 0:02:16]} 13. a5 {[%clk 0:02:58]}  Be6 {[%clk 0:02:14]} 14. d5 {[%clk 0:02:52]}  Bd7 {[%clk 0:02:14]} 15. Nc4 {[%clk 0:02:46]}  h6 {[%clk 0:02:08]} 16. Nb6 {[%clk 0:02:33]}  Rad8 {[%clk 0:02:08]} 17. b4 {[%clk 0:02:32]}  c4 {[%clk 0:02:02]} 18. Be3 {[%clk 0:02:30]}  Bb5 {[%clk 0:02:02]} 19. h3 {[%clk 0:02:28]}  Nh7 {[%clk 0:01:59]} 20. Qd2 {[%clk 0:02:13]}  Bg5 {[%clk 0:01:59]} 21. g3 {[%clk 0:02:08]}  Rf8 {[%clk 0:01:55]} 22. h4 {[%clk 0:01:51]}  Bxe3 {[%clk 0:01:55]} 23. Qxe3 {[%clk 0:01:52]}  f5 {[%clk 0:01:47]} 24. exf5 {[%clk 0:01:53]}  Rxf5 {[%clk 0:01:48]} 25. Be4 {[%clk 0:01:54]}  Rff8 {[%clk 0:01:48]} 26. Bg6 {[%clk 0:01:45]}  Rf6 {[%clk 0:01:45]} 27. Qe4 {[%clk 0:01:35]}  Nf8 {[%clk 0:01:44]} 28. Bh5 {[%clk 0:01:36]}  Nd7 {[%clk 0:01:38]} 29. Nxd7 {[%clk 0:01:29]}  Bxd7 {[%clk 0:01:39]} 30. f4 {[%clk 0:01:10]}  exf4 {[%clk 0:01:24]} 31. Qe7 {[%clk 0:01:09]}  Qc8 {[%clk 0:01:07]} 32. Re6 {[%clk 0:00:30]}  Rdf8 {[%clk 0:00:41]} 33. Rxf6 {[%clk 0:00:29]}  Rxf6 {[%clk 0:00:40]} 34. Rf1 {[%clk 0:00:30]}  Bg4 {[%clk 0:00:31]} 35. Be8 {[%clk 0:00:13]}  f3 {[%clk 0:00:22]} 36. Kf2 {[%clk 0:00:13]}  Qf5 {[%clk 0:00:21]} 37. Kg1 {[%clk 0:00:06]}  f2+ {[%clk 0:00:21]} 38. Kh2 {[%clk 0:00:06]}  Be2 {[%clk 0:00:19]} 39. Bd7 {[%clk 0:00:06]}  Qe5 {[%clk 0:00:15]} 40. Be6+ {[%clk 0:00:04]}  Kh7 {[%clk 0:00:14]} 41. Qe8 {[%clk 0:00:05]}  Rxe6 {[%clk 0:00:14]} 42. Qxe6 {[%clk 0:00:03]}  Bxf1 {[%clk 0:00:14]} 43. Qf7 {[%clk 0:00:02]}  Bd3 {[%clk 0:00:13]} 44. Qxf2 {[%clk 0:00:02]}  Qe2 {[%clk 0:00:13]} 45. Kg1 {[%clk 0:00:02]}  Qxf2+ {[%clk 0:00:13]} 46. Kxf2 {[%clk 0:00:03]}  Be4 {[%clk 0:00:14]} 47. Ke3 {[%clk 0:00:04]}  Bxd5 {[%clk 0:00:14]} 48. Kd4 {[%clk 0:00:05]}  Be6 {[%clk 0:00:15]} 49. Ke4 {[%clk 0:00:06]}  Kg6 {[%clk 0:00:16]} 50. Kf4 {[%clk 0:00:06]}  Kf6 {[%clk 0:00:17]} 51. g4 {[%clk 0:00:07]}  g5+ {[%clk 0:00:17]} 52. hxg5+ {[%clk 0:00:07]}  hxg5+ {[%clk 0:00:18]} 53. Ke4 {[%clk 0:00:08]}  Bxg4 {[%clk 0:00:18]} 54. Kd5 {[%clk 0:00:09]}  Bd7 {[%clk 0:00:19]} 55. Kxd6 {[%clk 0:00:09]}  Bc6 {[%clk 0:00:20]} 56. Kc7 {[%clk 0:00:09]}  g4 {[%clk 0:00:20]} 57. b5 {[%clk 0:00:10]}  Bxb5 {[%clk 0:00:20]} 58. Kb6 {[%clk 0:00:10]}  g3 {[%clk 0:00:21]} 59. Kc5 {[%clk 0:00:11]}  g2 {[%clk 0:00:22]} 60. Kd5 {[%clk 0:00:08]}  Bc6+ {[%clk 0:00:21]} 61. Kd6 {[%clk 0:00:08]}  g1=Q {[%clk 0:00:21]} 62. Kc7 {[%clk 0:00:09]}  Qg7+ {[%clk 0:00:21]} 63. Kb6 {[%clk 0:00:10]}  Qf8 {[%clk 0:00:20]} 64. Kc7 {[%clk 0:00:09]}  Qe7+ {[%clk 0:00:21]} 65. Kb6 {[%clk 0:00:09]}  Qd8+ {[%clk 0:00:21]} 66. Kc5 {[%clk 0:00:05]}  Qxa5+ {[%clk 0:00:21]} 67. Kd6 {[%clk 0:00:06]}  Qxc3 {[%clk 0:00:21]} 68. Kc5 {[%clk 0:00:06]}  Be8 {[%clk 0:00:21]} 69. Kd5 {[%clk 0:00:05]}  b5 {[%clk 0:00:21]} 70. Kc5 {[%clk 0:00:05]}  b4 {[%clk 0:00:22]} 71. Kb6 {[%clk 0:00:06]}  b3 {[%clk 0:00:22]} 72. Kc5 {[%clk 0:00:02]}  b2 {[%clk 0:00:22]} 73. Kd6 {[%clk 0:00:02]}  Qe5# {[%clk 0:00:22]} 0-1


[Site "https://www.chess.com"]

[Event "Titled Tuesday Blitz October 26 2021"]
[White "Rozen, Eytan"]
[Black "Jones, Gawain C B"]
[WhiteFideId "2816750"]
[BlackFideId "409561"]
[WhiteElo "2115"]
[BlackElo "2657"]
[Result "0-1"]
[Round "04"]
[TimeControl "180+1"]
[Date "2021.10.26"]
[WhiteClock "0:00:01"]
[BlackClock "0:00:04"]

1. c4 {[%clk 0:03:00]}  g6 {[%clk 0:02:59]} 2. Nc3 {[%clk 0:03:01]}  c5 {[%clk 0:02:59]} 3. g3 {[%clk 0:03:01]}  Bg7 {[%clk 0:02:59]} 4. Bg2 {[%clk 0:03:00]}  Nc6 {[%clk 0:02:59]} 5. b3 {[%clk 0:03:00]}  e6 {[%clk 0:02:54]} 6. Ba3 {[%clk 0:03:00]}  d6 {[%clk 0:02:50]} 7. e3 {[%clk 0:03:00]}  Nge7 {[%clk 0:02:50]} 8. Nge2 {[%clk 0:03:00]}  Nf5 {[%clk 0:02:49]} 9. O-O {[%clk 0:02:55]}  h5 {[%clk 0:02:49]} 10. d4 {[%clk 0:02:43]}  cxd4 {[%clk 0:02:46]} 11. exd4 {[%clk 0:02:44]}  Ncxd4 {[%clk 0:02:41]} 12. Nxd4 {[%clk 0:02:38]}  Nxd4 {[%clk 0:02:42]} 13. Ne4 {[%clk 0:02:36]}  Nf5 {[%clk 0:02:37]} 14. Nxd6+ {[%clk 0:02:23]}  Nxd6 {[%clk 0:02:35]} 15. Bxd6 {[%clk 0:02:24]}  Bxa1 {[%clk 0:02:31]} 16. Qxa1 {[%clk 0:02:24]}  f6 {[%clk 0:02:31]} 17. Rd1 {[%clk 0:02:09]}  Kf7 {[%clk 0:02:30]} 18. Be5 {[%clk 0:02:09]}  Qe7 {[%clk 0:02:30]} 19. Bd6 {[%clk 0:02:09]}  Qe8 {[%clk 0:02:25]} 20. c5 {[%clk 0:02:00]}  e5 {[%clk 0:02:19]} 21. f4 {[%clk 0:01:58]}  e4 {[%clk 0:02:10]} 22. Qd4 {[%clk 0:01:57]}  Bf5 {[%clk 0:01:59]} 23. Re1 {[%clk 0:01:41]}  Qc6 {[%clk 0:01:42]} 24. h3 {[%clk 0:01:19]}  Rae8 {[%clk 0:01:41]} 25. g4 {[%clk 0:01:10]}  hxg4 {[%clk 0:01:40]} 26. hxg4 {[%clk 0:01:10]}  Bxg4 {[%clk 0:01:40]} 27. Bxe4 {[%clk 0:01:10]}  Rh1+ {[%clk 0:01:10]} 28. Kxh1 {[%clk 0:01:03]}  Bf3+ {[%clk 0:01:09]} 29. Kg1 {[%clk 0:00:46]}  Bxe4 {[%clk 0:01:08]} 30. Kf2 {[%clk 0:00:38]}  Re6 {[%clk 0:00:53]} 31. Re3 {[%clk 0:00:32]}  b6 {[%clk 0:00:36]} 32. b4 {[%clk 0:00:19]}  a6 {[%clk 0:00:32]} 33. a3 {[%clk 0:00:18]}  bxc5 {[%clk 0:00:27]} 34. Bxc5 {[%clk 0:00:19]}  g5 {[%clk 0:00:14]} 35. Qd8 {[%clk 0:00:11]}  Re8 {[%clk 0:00:07]} 36. Qd6 {[%clk 0:00:04]}  Qxd6 {[%clk 0:00:07]} 37. Bxd6 {[%clk 0:00:05]}  g4 {[%clk 0:00:08]} 38. Rc3 {[%clk 0:00:02]}  Rd8 {[%clk 0:00:07]} 39. Rc7+ {[%clk 0:00:02]}  Ke6 {[%clk 0:00:06]} 40. Re7+ {[%clk 0:00:02]}  Kf5 {[%clk 0:00:06]} 41. Bc7 {[%clk 0:00:02]}  Rd2+ {[%clk 0:00:06]} 42. Ke3 {[%clk 0:00:02]}  Rd3+ {[%clk 0:00:06]} 43. Ke2 {[%clk 0:00:02]}  Rxa3 {[%clk 0:00:05]} 44. Bb8 {[%clk 0:00:02]}  g3 {[%clk 0:00:05]} 45. Re8 {[%clk 0:00:01]}  Bf3+ {[%clk 0:00:04]} 46. Kd2 {[%clk 0:00:01]}  g2 {[%clk 0:00:04]} 47. Rg8 {[%clk 0:00:02]}  Bg4 {[%clk 0:00:04]} 48. Ba7 {[%clk 0:00:01]}  Ra1 {[%clk 0:00:04]} 49. Kc3 {[%clk 0:00:01]}  g1=Q {[%clk 0:00:04]} 0-1


[Site "https://www.chess.com"]

[Event "Titled Tuesday Blitz October 26 2021"]
[White "Savchenko, Boris"]
[Black "Shkapenko, Pavel"]
[WhiteFideId "4147332"]
[BlackFideId "4151933"]
[WhiteElo "2526"]
[BlackElo "2386"]
[Result "1-0"]
[Round "04"]
[TimeControl "180+1"]
[Date "2021.10.26"]
[WhiteClock "0:00:57"]
[BlackClock "0:00:09"]

1. e4 {[%clk 0:03:00]}  e5 {[%clk 0:02:57]} 2. Nf3 {[%clk 0:03:00]}  Nc6 {[%clk 0:02:56]} 3. Bc4 {[%clk 0:03:01]}  d6 {[%clk 0:02:56]} 4. d4 {[%clk 0:03:00]}  Nf6 {[%clk 0:02:55]} 5. d5 {[%clk 0:02:59]}  Nb8 {[%clk 0:02:54]} 6. Nc3 {[%clk 0:02:58]}  Be7 {[%clk 0:02:51]} 7. h3 {[%clk 0:02:55]}  a6 {[%clk 0:02:49]} 8. a4 {[%clk 0:02:55]}  a5 {[%clk 0:02:44]} 9. g4 {[%clk 0:02:48]}  Nfd7 {[%clk 0:02:43]} 10. Rg1 {[%clk 0:02:45]}  Nc5 {[%clk 0:02:43]} 11. Be3 {[%clk 0:02:36]}  Nbd7 {[%clk 0:02:37]} 12. g5 {[%clk 0:02:36]}  Nb6 {[%clk 0:02:33]} 13. Bf1 {[%clk 0:02:32]}  O-O {[%clk 0:02:25]} 14. h4 {[%clk 0:02:28]}  Qe8 {[%clk 0:02:16]} 15. h5 {[%clk 0:02:25]}  Ncxa4 {[%clk 0:02:10]} 16. Nb5 {[%clk 0:02:16]}  Bd8 {[%clk 0:01:57]} 17. c3 {[%clk 0:02:14]}  Bd7 {[%clk 0:01:50]} 18. Qb3 {[%clk 0:01:54]}  Nc5 {[%clk 0:01:43]} 19. Bxc5 {[%clk 0:01:52]}  dxc5 {[%clk 0:01:44]} 20. Na3 {[%clk 0:01:53]}  f5 {[%clk 0:01:38]} 21. gxf6 {[%clk 0:01:51]}  Bxf6 {[%clk 0:01:36]} 22. Nc4 {[%clk 0:01:44]}  a4 {[%clk 0:01:30]} 23. Qa2 {[%clk 0:01:43]}  Nxc4 {[%clk 0:01:25]} 24. Qxc4 {[%clk 0:01:44]}  Qxh5 {[%clk 0:01:25]} 25. Be2 {[%clk 0:01:36]}  Bg4 {[%clk 0:01:11]} 26. Rg3 {[%clk 0:01:21]}  Bh4 {[%clk 0:00:55]} 27. Nxh4 {[%clk 0:01:15]}  Bxe2 {[%clk 0:00:55]} 28. Qxc5 {[%clk 0:01:14]}  Qxh4 {[%clk 0:00:48]} 29. Kxe2 {[%clk 0:01:09]}  Qxe4+ {[%clk 0:00:48]} 30. Kd2 {[%clk 0:01:08]}  Rad8 {[%clk 0:00:29]} 31. c4 {[%clk 0:01:08]}  b6 {[%clk 0:00:22]} 32. Qxc7 {[%clk 0:01:06]}  Rxf2+ {[%clk 0:00:19]} 33. Kc3 {[%clk 0:01:06]}  Qd4+ {[%clk 0:00:17]} 34. Kb4 {[%clk 0:01:06]}  Rxb2+ {[%clk 0:00:16]} 35. Ka3 {[%clk 0:01:05]}  Rb3+ {[%clk 0:00:11]} 36. Rxb3 {[%clk 0:01:05]}  axb3 {[%clk 0:00:11]} 37. Qxd8+ {[%clk 0:01:05]}  Kf7 {[%clk 0:00:12]} 38. Qd7+ {[%clk 0:01:01]}  Kf6 {[%clk 0:00:09]} 39. Rf1+ {[%clk 0:00:58]}  Kg6 {[%clk 0:00:09]} 40. Qf5+ {[%clk 0:00:57]} 1-0


[Site "https://www.chess.com"]

[Event "Titled Tuesday Blitz October 26 2021"]
[White "Seo, Jung Min"]
[Black "Jobava, Baadur"]
[WhiteFideId "1734687"]
[BlackFideId "13601520"]
[WhiteElo "2486"]
[BlackElo "2731"]
[Result "0-1"]
[Round "04"]
[TimeControl "180+1"]
[Date "2021.10.26"]
[WhiteClock "0:00:06"]
[BlackClock "0:00:07"]

1. e4 {[%clk 0:03:00]}  c6 {[%clk 0:02:54]} 2. d4 {[%clk 0:02:59]}  d5 {[%clk 0:02:55]} 3. exd5 {[%clk 0:02:58]}  cxd5 {[%clk 0:02:55]} 4. Bd3 {[%clk 0:02:59]}  Nc6 {[%clk 0:02:55]} 5. c3 {[%clk 0:02:59]}  Nf6 {[%clk 0:02:56]} 6. h3 {[%clk 0:02:59]}  g6 {[%clk 0:02:54]} 7. Nf3 {[%clk 0:02:57]}  Bf5 {[%clk 0:02:55]} 8. Be2 {[%clk 0:02:57]}  e6 {[%clk 0:02:55]} 9. Bf4 {[%clk 0:02:53]}  Bd6 {[%clk 0:02:55]} 10. Bxd6 {[%clk 0:02:50]}  Qxd6 {[%clk 0:02:56]} 11. Nbd2 {[%clk 0:02:50]}  h5 {[%clk 0:02:55]} 12. Nf1 {[%clk 0:02:48]}  O-O-O {[%clk 0:02:54]} 13. Ne3 {[%clk 0:02:46]}  Ne4 {[%clk 0:02:51]} 14. Nd2 {[%clk 0:02:40]}  h4 {[%clk 0:02:48]} 15. Nxe4 {[%clk 0:02:35]}  Bxe4 {[%clk 0:02:47]} 16. Qd2 {[%clk 0:02:34]}  Kb8 {[%clk 0:02:34]} 17. O-O-O {[%clk 0:02:32]}  Rc8 {[%clk 0:02:22]} 18. f3 {[%clk 0:02:30]}  Bf5 {[%clk 0:02:20]} 19. Nxf5 {[%clk 0:02:23]}  gxf5 {[%clk 0:02:19]} 20. Rhe1 {[%clk 0:02:21]}  Ne7 {[%clk 0:02:01]} 21. Kb1 {[%clk 0:02:18]}  Rhg8 {[%clk 0:01:58]} 22. Bf1 {[%clk 0:02:18]}  Ng6 {[%clk 0:01:58]} 23. Qg5 {[%clk 0:02:15]}  Qe7 {[%clk 0:01:24]} 24. Qh6 {[%clk 0:02:13]}  Qc7 {[%clk 0:01:20]} 25. Qd2 {[%clk 0:02:09]}  Nf4 {[%clk 0:01:13]} 26. Qc2 {[%clk 0:02:02]}  Rg3 {[%clk 0:01:11]} 27. Rd2 {[%clk 0:02:01]}  Qd6 {[%clk 0:01:10]} 28. Rc1 {[%clk 0:01:56]}  a6 {[%clk 0:01:09]} 29. Qb3 {[%clk 0:01:52]}  Ka7 {[%clk 0:01:08]} 30. a4 {[%clk 0:01:46]}  f6 {[%clk 0:01:08]} 31. Ka2 {[%clk 0:01:39]}  e5 {[%clk 0:01:01]} 32. dxe5 {[%clk 0:01:38]}  fxe5 {[%clk 0:01:02]} 33. Rcd1 {[%clk 0:01:36]}  Qb6 {[%clk 0:00:56]} 34. Qa3 {[%clk 0:01:27]}  Rg7 {[%clk 0:00:47]} 35. Re1 {[%clk 0:01:22]}  e4 {[%clk 0:00:46]} 36. Rd4 {[%clk 0:01:16]}  Qc5 {[%clk 0:00:39]} 37. Qxc5+ {[%clk 0:01:07]}  Rxc5 {[%clk 0:00:39]} 38. c4 {[%clk 0:01:06]}  Nxg2 {[%clk 0:00:36]} 39. Bxg2 {[%clk 0:01:02]}  Rxg2 {[%clk 0:00:37]} 40. cxd5 {[%clk 0:00:59]}  Rcc2 {[%clk 0:00:27]} 41. fxe4 {[%clk 0:00:46]}  Rxb2+ {[%clk 0:00:26]} 42. Ka3 {[%clk 0:00:46]}  Rbc2 {[%clk 0:00:23]} 43. Kb3 {[%clk 0:00:43]}  Rb2+ {[%clk 0:00:20]} 44. Ka3 {[%clk 0:00:37]}  Ra2+ {[%clk 0:00:20]} 45. Kb3 {[%clk 0:00:37]}  Rgb2+ {[%clk 0:00:18]} 46. Kc3 {[%clk 0:00:37]}  Rh2 {[%clk 0:00:19]} 47. Kb3 {[%clk 0:00:30]}  Rab2+ {[%clk 0:00:17]} 48. Ka3 {[%clk 0:00:29]}  Rbf2 {[%clk 0:00:15]} 49. Re3 {[%clk 0:00:25]}  f4 {[%clk 0:00:14]} 50. Red3 {[%clk 0:00:21]}  f3 {[%clk 0:00:15]} 51. d6 {[%clk 0:00:19]}  Ra2+ {[%clk 0:00:15]} 52. Kb3 {[%clk 0:00:19]}  Rhb2+ {[%clk 0:00:13]} 53. Kc3 {[%clk 0:00:19]}  Rc2+ {[%clk 0:00:12]} 54. Kb3 {[%clk 0:00:20]}  Rab2+ {[%clk 0:00:10]} 55. Ka3 {[%clk 0:00:20]}  f2 {[%clk 0:00:10]} 56. Rd1 {[%clk 0:00:18]}  Rd2 {[%clk 0:00:08]} 57. R4xd2 {[%clk 0:00:17]}  Rxd2 {[%clk 0:00:09]} 58. Rf1 {[%clk 0:00:17]}  Rxd6 {[%clk 0:00:09]} 59. Rxf2 {[%clk 0:00:17]}  Rd3+ {[%clk 0:00:10]} 60. Kb4 {[%clk 0:00:17]}  Rxh3 {[%clk 0:00:11]} 61. Rf4 {[%clk 0:00:17]}  Rh1 {[%clk 0:00:11]} 62. e5 {[%clk 0:00:18]}  h3 {[%clk 0:00:11]} 63. Rf2 {[%clk 0:00:12]}  h2 {[%clk 0:00:08]} 64. Rb2 {[%clk 0:00:12]}  Kb6 {[%clk 0:00:09]} 65. e6 {[%clk 0:00:09]}  Kc6 {[%clk 0:00:08]} 66. e7 {[%clk 0:00:09]}  Kd7 {[%clk 0:00:08]} 67. Re2 {[%clk 0:00:09]}  Ke8 {[%clk 0:00:08]} 68. Ka5 {[%clk 0:00:08]}  b5 {[%clk 0:00:08]} 69. axb5 {[%clk 0:00:06]}  Ra1+ {[%clk 0:00:07]} 0-1


[Site "https://www.chess.com"]